bitfinex-derivatives/quotes_BTCF0:USTF0_20250913
["timestamp","ask_amount","ask_price","bid_price","bid_amount"]
[1757755165366,0.10778546,115980.0,115970.0,1.14152]
[1757755165567,0.28446778,115980.0,115970.0,1.14152]
[1757755170278,0.10778546,115980.0,115970.0,1.14152]
[1757755170479,0.28446778,115980.0,115970.0,1.14152]
[1757755170681,0.10778546,115980.0,115970.0,1.14152]
[1757755170877,0.28446778,115980.0,115970.0,1.14152]
[1757755172878,0.23792551,115980.0,115970.0,1.14152]
[1757755175180,0.28446822,115980.0,115970.0,1.14152]
[1757755176380,0.1077859,115980.0,115970.0,1.14152]
[1757755176680,0.28446822,115980.0,115970.0,1.14152]
[1757755181183,0.1077859,115980.0,115970.0,1.14152]
[1757755181485,0.28446822,115980.0,115970.0,1.14152]
[1757755192400,0.3065641,115980.0,115970.0,1.14152]
[1757755194493,0.26002139,115980.0,115970.0,1.14196]
[1757755195197,0.30656468,115980.0,115970.0,1.14196]
[1757755203203,0.30656528,115980.0,115970.0,1.14196]
[1757755207008,0.28092209,115980.0,115970.0,1.14196]
[1757755207308,0.30654516,115980.0,115970.0,1.14196]
[1757755207505,0.24028576,115980.0,115970.0,1.14196]
[1757755207708,0.10776696,115980.0,115970.0,1.14196]
[1757755207905,0.24028576,115980.0,115970.0,1.14196]
[1757755209207,0.30654516,115980.0,115970.0,1.14196]
[1757755211613,0.32209622,115980.0,115970.0,1.14196]
[1757755213110,0.26000127,115980.0,115970.0,1.14196]
[1757755215004,0.30654548,115980.0,115970.0,1.14196]
[1757755215610,0.30654548,115980.0,115970.0,1.2082194]
[1757755218519,0.24028608,115980.0,115970.0,1.2082194]
[1757755221016,0.24028608,115980.0,115970.0,1.14196]
[1757755221215,0.24028608,115980.0,115970.0,1.2082194]
[1757755221820,0.21466301,115980.0,115970.0,1.2082194]
[1757755222014,0.24028608,115980.0,115970.0,1.2082194]
[1757755222917,0.24028608,115980.0,115970.0,0.8474194]
[1757755223116,0.24028608,115980.0,115970.0,1.2082194]
[1757755226020,0.24028608,115980.0,115970.0,1.14196]
[1757755226216,0.24028608,115980.0,115970.0,1.2082194]
[1757755226416,0.24028608,115980.0,115970.0,1.14196]
[1757755226617,0.24028608,115980.0,115970.0,1.2082194]
[1757755231424,0.10776728,115980.0,115970.0,1.2082194]
[1757755231626,0.30654548,115980.0,115970.0,1.2082194]
[1757755232525,0.26000127,115980.0,115970.0,1.2082194]
[1757755232726,0.19374187,115980.0,115970.0,1.2082194]
[1757755235019,0.24028133,115980.0,115970.0,1.2082194]
[1757755236827,0.10776253,115980.0,115970.0,1.2082194]
[1757755237027,0.24028133,115980.0,115970.0,1.2082194]
[1757755239932,0.19374187,115980.0,115970.0,1.14196]
[1757755240128,0.24028025,115980.0,115970.0,1.2082194]
[1757755240533,0.19374187,115980.0,115970.0,1.2082194]
[1757755241333,0.24028012,115980.0,115970.0,1.2082194]
[1757755243138,0.25583682,115980.0,115970.0,1.2082194]
[1757755244935,0.25583682,115980.0,115970.0,0.8474194]
[1757755245141,0.25583682,115980.0,115970.0,1.2082194]
[1757755248040,0.25583682,115980.0,115970.0,1.14196]
[1757755248237,0.25583682,115980.0,115970.0,1.2082194]
[1757755249441,0.32209622,115980.0,115970.0,1.14188]
[1757755250844,0.32209622,115980.0,115970.0,1.14288]
[1757755252546,0.30001234,115980.0,115970.0,1.14288]
[1757755253147,0.23791739,115980.0,115970.0,1.14288]
[1757755253347,0.23791739,115980.0,115970.0,0.3618]
[1757755253547,0.23791739,115980.0,115970.0,1.14284]
[1757755255145,0.28444927,115980.0,115970.0,1.14284]
[1757755259149,0.2588262,115980.0,115970.0,1.14284]
[1757755259451,0.28421934,115980.0,115970.0,1.14284]
[1757755264147,0.2588262,115980.0,115970.0,1.14284]
[1757755264341,0.28415809,115980.0,115970.0,1.14284]
[1757755264540,0.28415809,115980.0,115970.0,0.3618]
[1757755264746,0.28415809,115980.0,115970.0,1.14264]
[1757755267654,0.28415809,115980.0,115970.0,1.14252]
[1757755271356,0.23762621,115980.0,115970.0,1.14252]
[1757755277161,0.28415658,115980.0,115970.0,1.14252]
[1757755284158,0.23762621,115980.0,115970.0,1.14252]
[1757755285163,0.28415701,115980.0,115970.0,1.14252]
[1757755293175,0.29972116,115980.0,115970.0,1.14252]
[1757755293664,0.29972116,115980.0,115970.0,0.3618]
[1757755293866,0.29972116,115980.0,115970.0,1.14216]
[1757755294370,0.29972116,115980.0,115970.0,0.3618]
[1757755294562,0.29972116,115980.0,115970.0,1.14216]
[1757755294761,0.66052116,115980.0,115970.0,0.78136]
[1757755303172,0.64492279,115980.0,115970.0,0.78136]
[1757755312381,0.66703085,115980.0,115970.0,0.78136]
[1757755324288,0.62053427,115980.0,115970.0,0.78136]
[1757755325598,0.66704641,115980.0,115970.0,0.001]
[1757755325795,0.62053427,115980.0,115970.0,0.78136]
[1757755328501,0.66703412,115980.0,115970.0,0.78136]
[1757755330503,0.62053427,115980.0,115970.0,0.78136]
[1757755333109,0.66703412,115980.0,115970.0,0.78136]
[1757755338310,0.62053427,115980.0,115970.0,0.78136]
[1757755340222,0.48382684,115980.0,115970.0,0.78136]
[1757755340519,0.68262922,115980.0,115970.0,0.78136]
[1757755340820,0.69811253,115980.0,115970.0,0.78136]
[1757755343116,0.7600975,115980.0,115970.0,0.78136]
[1757755343313,0.68251924,115980.0,115970.0,0.78136]
[1757755352829,0.62053427,115980.0,115970.0,0.78136]
[1757755353419,0.68251924,115980.0,115970.0,0.78136]
[1757755357130,0.62053427,115980.0,115970.0,0.78136]
[1757755359230,0.62114156,115980.0,115970.0,0.78136]
[1757755366426,0.68312653,115980.0,115970.0,0.78136]
[1757755371435,0.48432415,115980.0,115970.0,0.78136]
[1757755371636,0.68312653,115980.0,115970.0,0.78136]
[1757755372437,0.66103941,115980.0,115970.0,0.78136]
[1757755373436,0.48432415,115980.0,115970.0,0.78136]
[1757755373636,0.66103941,115980.0,115970.0,0.78136]
[1757755378143,0.48432415,115980.0,115970.0,0.78136]
[1757755378341,0.66103941,115980.0,115970.0,0.78136]
[1757755383246,0.59905444,115980.0,115970.0,0.78136]
[1757755383546,0.6766327,115980.0,115970.0,0.78136]
[1757755384445,0.73861849,115980.0,115970.0,0.78136]
[1757755384744,0.66104023,115980.0,115970.0,0.78136]
[1757755393146,0.59905444,115980.0,115970.0,0.78136]
[1757755393742,0.66104023,115980.0,115970.0,0.78136]
[1757755395454,0.59905444,115980.0,115970.0,0.78136]
[1757755399753,0.59905444,115980.0,115970.0,0.001]
[1757755399953,0.59905444,115980.0,115970.0,0.7812]
[1757755400450,0.66104023,115980.0,115970.0,0.7812]
[1757755405057,0.59905444,115980.0,115970.0,0.7812]
[1757755407359,0.66104023,115980.0,115970.0,0.7812]
[1757755407958,0.59905444,115980.0,115970.0,0.7812]
[1757755408260,0.59905444,115980.0,115970.0,0.78116]
[1757755409158,0.66104023,115980.0,115970.0,0.78116]
[1757755409359,0.59905444,115980.0,115970.0,0.78116]
[1757755413965,0.23825444,115980.0,115970.0,0.78116]
[1757755414262,0.59905444,115980.0,115970.0,0.78116]
[1757755414964,0.66104023,115980.0,115970.0,0.78116]
[1757755415158,0.59905444,115980.0,115970.0,0.78116]
[1757755419267,0.66104023,115980.0,115970.0,0.78116]
[1757755419466,0.59905444,115980.0,115970.0,0.78116]
[1757755422172,0.66104023,115980.0,115970.0,0.78116]
[1757755422366,0.59905444,115980.0,115970.0,0.78116]
[1757755425173,0.42233918,115980.0,115970.0,0.78116]
[1757755425470,0.59905444,115980.0,115970.0,0.78116]
[1757755427173,0.64555991,115980.0,115970.0,0.78116]
[1757755428570,0.59905444,115980.0,115970.0,0.78116]
[1757755429777,0.42233918,115980.0,115970.0,0.78116]
[1757755429975,0.59905444,115980.0,115970.0,0.78116]
[1757755433380,0.6766327,115980.0,115970.0,0.78116]
[1757755433773,0.59905444,115980.0,115970.0,0.78116]
[1757755434472,0.62114096,115980.0,115970.0,0.78116]
[1757755434985,0.68314664,115980.0,115970.0,0.78116]
[1757755440581,0.62114096,115980.0,115970.0,0.78116]
[1757755440980,0.68314664,115980.0,115970.0,0.78116]
[1757755443181,0.62114096,115980.0,115970.0,0.78116]
[1757755444084,0.62101963,115980.0,115970.0,0.78116]
[1757755445185,0.66752276,115980.0,115970.0,0.78116]
[1757755446084,0.66752276,115980.0,115970.0,0.001]
[1757755446283,0.66752276,115980.0,115970.0,0.78104]
[1757755447186,0.62101963,115980.0,115970.0,0.78104]
[1757755449488,0.62101963,115980.0,115970.0,0.001]
[1757755450686,0.68302531,115980.0,115970.0,0.001]
[1757755451487,0.62101963,115980.0,115970.0,0.001]
[1757755455104,0.66751518,115980.0,115970.0,0.001]
[1757755455793,0.62101963,115980.0,115970.0,0.001]
[1757755458807,0.68302531,115980.0,115970.0,0.001]
[1757755467116,0.62101963,115980.0,115970.0,0.001]
[1757755471621,0.68302531,115980.0,115970.0,0.001]
[1757755473324,0.62101963,115980.0,115970.0,0.001]
[1757755477629,0.68301793,115980.0,115970.0,0.001]
[1757755483327,0.62101963,115980.0,115970.0,0.001]
[1757755483935,0.68301793,115980.0,115970.0,0.001]
[1757755485134,0.62101963,115980.0,115970.0,0.001]
[1757755486338,0.66751805,115980.0,115970.0,0.001]
[1757755487141,0.62101963,115980.0,115970.0,0.001]
[1757755493250,0.68301793,115980.0,115970.0,0.001]
[1757755493953,0.62101963,115980.0,115970.0,0.001]
[1757755494454,0.66093949,115980.0,115970.0,0.001]
[1757755497055,0.59894119,115980.0,115970.0,0.001]
[1757755499350,0.66093949,115980.0,115970.0,0.001]
[1757755499755,0.59894119,115980.0,115970.0,0.001]
[1757755501059,0.64543906,115980.0,115970.0,0.001]
[1757755502561,0.59894119,115980.0,115970.0,0.001]
[1757755503160,0.66093949,115980.0,115970.0,0.001]
[1757755505254,0.59894119,115980.0,115970.0,0.001]
[1757755512264,0.66093949,115980.0,115970.0,0.001]
[1757755515163,0.59894119,115980.0,115970.0,0.001]
[1757755519467,0.66093949,115980.0,115970.0,0.001]
[1757755523376,0.67651945,115980.0,115960.0,0.57824]
[1757755523564,0.27444635,115970.0,115960.0,0.59824]
[1757755523769,0.3002642,115970.0,115960.0,0.59824]
[1757755524074,0.21190253,115970.0,115960.0,0.59824]
[1757755524275,0.22045329,115970.0,115960.0,0.59824]
[1757755524473,0.22045329,115970.0,115960.0,0.59924]
[1757755526077,0.22045329,115970.0,115960.0,0.60024]
[1757755526374,0.22045329,115970.0,115960.0,0.59924]
[1757755526578,0.22045329,115970.0,115960.0,0.60024]
[1757755526778,0.22045329,115970.0,115960.0,0.022]
[1757755531583,0.13209162,115970.0,115960.0,0.022]
[1757755531882,0.22045329,115970.0,115960.0,0.022]
[1757755533380,0.20495236,115970.0,115960.0,0.022]
[1757755535086,0.235947,115970.0,115960.0,0.022]
[1757755536485,0.22739624,115970.0,115960.0,0.022]
[1757755541089,0.1964016,115970.0,115960.0,0.022]
[1757755541482,0.1964016,115970.0,115960.0,0.002]
[1757755544492,0.22738908,115970.0,115960.0,0.002]
[1757755544693,0.1964016,115970.0,115960.0,0.002]
[1757755544993,0.10803993,115970.0,115960.0,0.002]
[1757755545188,0.1964016,115970.0,115960.0,0.002]
[1757755545993,0.22738948,115970.0,115960.0,0.002]
[1757755546192,0.1808974,115970.0,115960.0,0.002]
[1757755548997,0.22738948,115970.0,115960.0,0.002]
[1757755549204,0.13902781,115970.0,115960.0,0.002]
[1757755549394,0.22738948,115970.0,115960.0,0.002]
[1757755551299,0.1808974,115970.0,115960.0,0.96116167]
[1757755552086,0.09253573,115970.0,115960.0,0.96116167]
[1757755552491,0.1808974,115970.0,115960.0,0.96116167]
[1757755553986,0.09253573,115970.0,115960.0,0.96116167]
[1757755554197,0.03881785,115970.0,115960.0,1.29952334]
[1757755554388,0.10506572,115970.0,115960.0,1.32154361]
[1757755556292,0.10506572,115970.0,115960.0,2.10122361]
[1757755556494,0.03881785,115970.0,115960.0,2.10122361]
[1757755556891,0.10506572,115970.0,115960.0,2.10122361]
[1757755558102,0.10506572,115970.0,115960.0,1.1228]
[1757755558297,0.10506572,115970.0,115960.0,2.03493574]
[1757755558899,0.10506572,115970.0,115960.0,1.90244]
[1757755559197,0.10506572,115970.0,115960.0,2.03493574]
[1757755559702,0.10506572,115970.0,115960.0,1.25529574]
[1757755559892,0.19327359,115970.0,115960.0,1.65244]
[1757755560092,0.19327359,115970.0,115960.0,0.93904787]
[1757755560294,0.19327359,115970.0,115960.0,1.71868787]
[1757755563405,0.22426147,115970.0,115960.0,1.78493574]
[1757755564105,0.22426147,115970.0,115960.0,1.00529574]
[1757755564311,0.22426147,115970.0,115960.0,1.78497574]
[1757755564807,0.22426147,115970.0,115960.0,1.00529574]
[1757755565603,0.22426147,115970.0,115960.0,1.78493574]
[1757755565804,0.22426147,115970.0,115960.0,1.65244]
[1757755565999,0.29050934,115970.0,115960.0,1.65244]
[1757755566301,0.22426147,115970.0,115960.0,1.39868787]
[1757755567507,0.22426147,115970.0,115960.0,1.72868787]
[1757755568512,0.22426147,115970.0,115960.0,1.66244]
[1757755569011,0.22426147,115970.0,115960.0,1.72868787]
[1757755572410,0.27075355,115970.0,115960.0,1.72868787]
[1757755573104,0.27075355,115970.0,115960.0,1.66244]
[1757755573409,0.19327359,115970.0,115960.0,1.72868787]
[1757755580115,0.19327359,115970.0,115960.0,1.66244]
[1757755580316,0.19327359,115970.0,115960.0,1.72868787]
[1757755580915,0.19327359,115970.0,115960.0,1.66244]
[1757755581116,0.19327359,115970.0,115960.0,1.72868787]
[1757755582519,0.19327359,115970.0,115960.0,1.66244]
[1757755582719,0.19327359,115970.0,115960.0,1.72868787]
[1757755583910,0.19327359,115970.0,115960.0,1.66244]
[1757755584108,0.19327359,115970.0,115960.0,1.72868787]
[1757755585818,0.19327359,115970.0,115960.0,1.66244]
[1757755586223,0.19327359,115970.0,115960.0,1.72868787]
[1757755587427,0.06077785,115970.0,115960.0,1.72868787]
[1757755587629,0.19327359,115970.0,115960.0,1.72868787]
[1757755588337,0.22426147,115970.0,115960.0,1.66244]
[1757755588529,0.22426147,115970.0,115960.0,1.72868787]
[1757755589337,0.09176573,115970.0,115960.0,1.72868787]
[1757755589636,0.22426147,115970.0,115960.0,1.72868787]
[1757755591837,0.22426147,115970.0,115960.0,1.66244]
[1757755592437,0.09176573,115970.0,115960.0,1.66244]
[1757755592639,0.22426147,115970.0,115960.0,1.72868787]
[1757755593942,0.22426147,115970.0,115960.0,1.66244]
[1757755594141,0.22426147,115970.0,115960.0,1.72868787]
[1757755595940,0.22426147,115970.0,115960.0,1.66244]
[1757755596141,0.22426147,115970.0,115960.0,1.72868787]
[1757755600440,0.09176573,115970.0,115960.0,1.72868787]
[1757755600640,0.22426147,115970.0,115960.0,1.72868787]
[1757755600840,0.09176573,115970.0,115960.0,1.72868787]
[1757755601040,0.1580136,115970.0,115960.0,1.79493574]
[1757755601543,0.22426147,115970.0,115960.0,1.72868787]
[1757755603443,0.22426147,115970.0,115960.0,1.66244]
[1757755603644,0.22426147,115970.0,115960.0,1.72868787]
[1757755604540,0.22426147,115970.0,115960.0,1.66244]
[1757755604744,0.22426147,115970.0,115960.0,1.72868787]
[1757755605441,0.22426147,115970.0,115960.0,1.66244]
[1757755605640,0.91681354,115970.0,115960.0,0.78604]
[1757755605939,0.91681354,115970.0,115960.0,0.002]
[1757755605940,0.87032146,115970.0,115960.0,0.002]
[1757755606240,0.87032146,115970.0,115940.0,2.01684]
[1757755606241,0.01268,115950.0,115940.0,2.01684]
[1757755606446,0.28879419,115950.0,115940.0,3.13092]
[1757755606744,0.31461204,115950.0,115940.0,3.13092]
[1757755607749,0.31461204,115950.0,115940.0,3.13392]
[1757755608049,0.38455182,115950.0,115940.0,3.13392]
[1757755608248,0.33812947,115950.0,115940.0,3.13392]
[1757755608652,0.33812947,115950.0,115940.0,3.13692]
[1757755615858,0.2718816,115950.0,115940.0,3.13692]
[1757755616363,0.22777639,115950.0,115940.0,3.13692]
[1757755621662,0.22777639,115950.0,115940.0,1.48088]
[1757755622571,0.22778296,115950.0,115940.0,1.48088]
[1757755623466,0.19683473,115950.0,115940.0,1.48088]
[1757755633175,0.22778296,115950.0,115940.0,1.48088]
[1757755633376,0.19683473,115950.0,115940.0,1.48088]
[1757755634074,0.22778296,115950.0,115940.0,1.48088]
[1757755640479,0.27420531,115950.0,115940.0,1.48088]
[1757755640778,0.29652531,115950.0,115940.0,1.47912]
[1757755653390,0.21915473,115950.0,115940.0,1.47912]
[1757755661905,0.2656239,115950.0,115940.0,1.47912]
[1757755663406,0.25013426,115950.0,115940.0,1.47912]
[1757755669210,0.16174373,115950.0,115940.0,1.47912]
[1757755669406,0.25013426,115950.0,115940.0,1.47912]
[1757755671719,0.16174373,115950.0,115940.0,1.47912]
[1757755671910,0.25013426,115950.0,115940.0,1.47912]
[1757755673313,0.29660343,115950.0,115940.0,1.47912]
[1757755673714,0.29660343,115950.0,115940.0,0.6968]
[1757755673914,0.2656239,115950.0,115940.0,1.4782]
[1757755675130,0.17723337,115950.0,115940.0,1.4782]
[1757755675315,0.2656239,115950.0,115940.0,1.4782]
[1757755678422,0.37611093,115950.0,115940.0,1.4782]
[1757755685329,0.17723337,115950.0,115940.0,1.4782]
[1757755685531,0.37611093,115950.0,115940.0,1.4782]
[1757755688131,0.37611093,115950.0,115940.0,1.1174]
[1757755688331,0.37611093,115950.0,115940.0,1.4782]
[1757755692735,0.37611093,115950.0,115940.0,0.6968]
[1757755692945,0.37611093,115950.0,115940.0,1.47792]
[1757755703454,0.39153822,115950.0,115940.0,1.47792]
[1757755704354,0.32964176,115950.0,115940.0,1.47792]
[1757755704656,0.39153822,115950.0,115940.0,1.47792]
[1757755713358,0.37612684,115950.0,115940.0,1.47792]
[1757755724574,0.37636064,115950.0,115940.0,1.47792]
[1757755725177,0.37636064,115950.0,115940.0,1.47764]
[1757755726975,0.37636064,115950.0,115940.0,0.6968]
[1757755727175,0.37636064,115950.0,115940.0,1.47764]
[1757755733784,0.17748308,115950.0,115940.0,1.47764]
[1757755733984,0.37636064,115950.0,115940.0,1.47764]
[1757755738390,0.26587459,115950.0,115940.0,1.47764]
[1757755740094,0.26587459,115950.0,115940.0,0.6968]
[1757755740396,0.26587459,115950.0,115940.0,1.47764]
[1757755743195,0.26587459,115950.0,115940.0,0.6968]
[1757755743394,0.28128597,115950.0,115940.0,1.47764]
[1757755745391,0.28128597,115950.0,115940.0,0.6968]
[1757755745600,0.28128597,115950.0,115940.0,1.47764]
[1757755749204,0.21938951,115950.0,115940.0,1.47764]
[1757755752402,0.28128597,115950.0,115940.0,1.47764]
[1757755753503,0.26587892,115950.0,115940.0,1.47764]
[1757755761012,0.26587892,115950.0,115940.0,0.6968]
[1757755761212,0.26587892,115950.0,115940.0,1.4776]
[1757755775823,0.26587892,115950.0,115940.0,0.6968]
[1757755776021,0.26587892,115950.0,115940.0,1.47756]
[1757755776422,0.26587892,115950.0,115940.0,0.6968]
[1757755776628,0.26587892,115950.0,115940.0,1.47756]
[1757755777929,0.26587892,115950.0,115940.0,0.6968]
[1757755778130,0.35427043,115950.0,115940.0,1.47756]
[1757755792237,0.17748741,115950.0,115940.0,1.47756]
[1757755792433,0.35427043,115950.0,115940.0,1.47756]
[1757755793441,0.36967748,115950.0,115940.0,1.47756]
[1757755793844,0.30778102,115950.0,115940.0,1.47756]
[1757755798444,0.32988525,115950.0,115940.0,1.47756]
[1757755799349,0.39178171,115950.0,115940.0,1.47756]
[1757755803349,0.37637229,115950.0,115940.0,1.47756]
[1757755806255,0.17748504,115950.0,115940.0,1.47756]
[1757755806457,0.37637229,115950.0,115940.0,1.47756]
[1757755811661,0.37637229,115950.0,115940.0,0.6968]
[1757755811858,0.37637229,115950.0,115940.0,1.47752]
[1757755822874,0.17748504,115950.0,115940.0,1.47752]
[1757755823074,0.37637229,115950.0,115940.0,1.47752]
[1757755828482,0.35405229,115950.0,115940.0,1.47752]
[1757755829584,0.31874773,115950.0,115940.0,1.54381575]
[1757755830683,0.11621645,115950.0,115940.0,1.8601115]
[1757755830887,0.06972941,115950.0,115940.0,2.28720725]
[1757755831087,0.03873822,115950.0,115940.0,2.28720725]
[1757755831387,0.10503397,115950.0,115940.0,2.28720725]
[1757755831586,0.10503397,115950.0,115940.0,2.2209115]
[1757755831787,0.03873822,115950.0,115940.0,2.2209115]
[1757755831987,0.10503397,115950.0,115940.0,2.2209115]
[1757755832691,0.03873822,115950.0,115940.0,2.2209115]
[1757755832895,0.10503397,115950.0,115940.0,2.2209115]
[1757755833489,0.13602516,115950.0,115940.0,2.2209115]
[1757755833887,0.06972941,115950.0,115940.0,2.2209115]
[1757755834189,0.13602516,115950.0,115940.0,2.2209115]
[1757755834889,0.13602516,115950.0,115940.0,1.4401915]
[1757755835089,0.13602516,115950.0,115940.0,2.2211515]
[1757755835589,0.13602516,115950.0,115940.0,2.08856]
[1757755835789,0.13602516,115950.0,115940.0,2.08884]
[1757755835990,0.13602516,115950.0,115940.0,2.2214315]
[1757755837890,0.20232091,115950.0,115940.0,2.15513575]
[1757755839294,0.20232091,115950.0,115940.0,1.90513575]
[1757755840793,0.13602516,115950.0,115940.0,1.90513575]
[1757755840996,0.13602516,115950.0,115940.0,1.83884]
[1757755841194,0.13602516,115950.0,115940.0,1.9714315]
[1757755841495,0.13602516,115950.0,115940.0,1.83884]
[1757755841795,0.13602516,115950.0,115940.0,1.9714315]
[1757755843495,0.10503397,115950.0,115940.0,1.9714315]
[1757755844097,0.10503397,115950.0,115940.0,1.6106315]
[1757755850296,0.03873822,115950.0,115940.0,1.6106315]
[1757755850600,0.10503397,115950.0,115940.0,1.6106315]
[1757755850800,0.10503397,115950.0,115940.0,1.47804]
[1757755851104,0.10503397,115950.0,115940.0,1.6106315]
[1757755854503,0.10500803,115950.0,115940.0,1.6106315]
[1757755855603,0.10500803,115950.0,115940.0,1.9714315]
[1757755855999,0.03871228,115950.0,115940.0,1.9714315]
[1757755856209,0.10500803,115950.0,115940.0,2.03772725]
[1757755856506,0.03871228,115950.0,115940.0,2.03772725]
[1757755856706,0.03871228,115950.0,115940.0,1.25648725]
[1757755856907,0.10500803,115950.0,115940.0,1.25648725]
[1757755857109,0.10500803,115950.0,115940.0,1.9713115]
[1757755857503,0.03871228,115950.0,115940.0,1.9713115]
[1757755857811,0.17130378,115950.0,115940.0,1.90501575]
[1757755858402,0.23759953,115950.0,115940.0,1.0576]
[1757755858710,0.25993953,115950.0,115940.0,1.47788]
[1757755859312,0.29093072,115950.0,115940.0,1.47788]
[1757755860411,0.18043067,115950.0,115940.0,1.47788]
[1757755860803,0.18043067,115950.0,115940.0,1.47812]
[1757755861107,0.18043067,115950.0,115940.0,0.6968]
[1757755861410,0.18043067,115950.0,115940.0,1.47812]
[1757755863816,0.14943948,115950.0,115940.0,1.47812]
[1757755869320,0.14943948,115950.0,115940.0,0.6968]
[1757755869523,0.14943948,115950.0,115940.0,1.478]
[1757755870923,0.06105228,115950.0,115940.0,1.478]
[1757755871124,0.14943948,115950.0,115940.0,1.478]
[1757755882227,0.18043067,115950.0,115940.0,1.478]
[1757755883428,0.22691771,115950.0,115940.0,1.478]
[1757755886229,0.19592652,115950.0,115940.0,1.478]
[1757755893439,0.18042644,115950.0,115940.0,1.478]
[1757755896138,0.09203924,115950.0,115940.0,1.478]
[1757755896331,0.18042644,115950.0,115940.0,1.478]
[1757755903546,0.22691348,115950.0,115940.0,1.478]
[1757755910450,0.13852628,115950.0,115940.0,1.478]
[1757755910652,0.22691348,115950.0,115940.0,1.478]
[1757755911651,0.13852628,115950.0,115940.0,1.478]
[1757755911851,0.22691348,115950.0,115940.0,1.478]
[1757755912652,0.22691348,115950.0,115940.0,1.1172]
[1757755912848,0.22691348,115950.0,115940.0,1.478]
[1757755914053,0.13852628,115950.0,115940.0,1.478]
[1757755914352,0.22691348,115950.0,115940.0,1.478]
[1757755916857,0.13852628,115950.0,115940.0,1.478]
[1757755917156,0.22691348,115950.0,115940.0,1.478]
[1757755920152,0.13852628,115950.0,115940.0,1.478]
[1757755920356,0.22691348,115950.0,115940.0,1.478]
[1757755922357,0.33739226,115950.0,115940.0,1.54428866]
[1757755922756,0.13852628,115950.0,115940.0,1.54428866]
[1757755923051,0.33739226,115950.0,115940.0,1.54428866]
[1757755923361,0.13852628,115950.0,115940.0,1.54428866]
[1757755923551,0.13852628,115950.0,115940.0,1.478]
[1757755923552,0.33739226,115950.0,115940.0,1.478]
[1757755925560,0.29090522,115950.0,115940.0,1.478]
[1757755930060,0.09203924,115950.0,115940.0,1.478]
[1757755930363,0.29090522,115950.0,115940.0,1.478]
[1757755931261,0.33739226,115950.0,115940.0,1.478]
[1757755933462,0.3064053,115950.0,115940.0,1.478]
[1757755935363,0.3064053,115950.0,115940.0,1.148]
[1757755935563,0.3064053,115950.0,115940.0,1.298]
[1757755940060,0.11619315,115950.0,115940.0,1.92686598]
[1757755940264,0.06970611,115950.0,115940.0,2.53766598]
[1757755941570,0.13599477,115950.0,115940.0,2.53766598]
[1757755941759,0.06970611,115950.0,115940.0,2.53766598]
[1757755943464,0.03871228,115950.0,115940.0,2.53766598]
[1757755944871,0.10500094,115950.0,115940.0,2.53766598]
[1757755945073,0.10500094,115950.0,115940.0,2.3388]
[1757755945278,0.10500094,115950.0,115940.0,2.53766598]
[1757755945664,0.10500094,115950.0,115940.0,2.47137732]
[1757755947974,0.03871228,115950.0,115940.0,2.47137732]
[1757755948173,0.10500094,115950.0,115940.0,2.47137732]
[1757755949875,0.03871228,115950.0,115940.0,2.47137732]
[1757755950176,0.10500094,115950.0,115940.0,2.47137732]
[1757755955581,0.10500094,115950.0,115940.0,2.53766598]
[1757755956678,0.03871228,115950.0,115940.0,2.53766598]
[1757755956982,0.10500094,115950.0,115940.0,2.53766598]
[1757755958977,0.10500094,115950.0,115940.0,2.3388]
[1757755959483,0.10500094,115950.0,115940.0,2.28766598]
[1757755961283,0.10500094,115950.0,115940.0,2.22137732]
[1757755964797,0.03871228,115950.0,115940.0,2.22137732]
[1757755965081,0.10500094,115950.0,115940.0,2.22137732]
[1757755971484,0.03871228,115950.0,115940.0,2.22137732]
[1757755971686,0.10500094,115950.0,115940.0,2.22137732]
[1757755973291,0.13599477,115950.0,115940.0,2.22137732]
[1757755973488,0.18248181,115950.0,115940.0,2.0888]
[1757755973792,0.18248181,115950.0,115940.0,2.22137732]
[1757755974593,0.18248181,115950.0,115940.0,2.28766598]
[1757755974894,0.15148798,115950.0,115940.0,2.28766598]
[1757755975194,0.18248106,115950.0,115940.0,2.09032]
[1757755975395,0.15148798,115950.0,115940.0,2.09032]
[1757755975696,0.15148798,115950.0,115940.0,2.22289732]
[1757755976798,0.18247969,115950.0,115940.0,2.22289732]
[1757755977398,0.11619103,115950.0,115940.0,2.22289732]
[1757755977699,0.18247969,115950.0,115940.0,2.22289732]
[1757755978697,0.11619103,115950.0,115940.0,2.22289732]
[1757755978891,0.18247969,115950.0,115940.0,2.22289732]
[1757755979397,0.13599265,115950.0,115940.0,2.22289732]
[1757755980693,0.06970399,115950.0,115940.0,2.22289732]
[1757755981000,0.13599265,115950.0,115940.0,2.22289732]
[1757755982002,0.13599265,115950.0,115940.0,2.09032]
[1757755982196,0.13599265,115950.0,115940.0,2.22289732]
[1757755982396,0.06970399,115950.0,115940.0,2.17868541]
[1757755983603,0.03871228,115950.0,115940.0,2.17868541]
[1757755985206,0.03871228,115950.0,115940.0,2.26705082]
[1757755985901,0.03871228,115950.0,115940.0,2.09032]
[1757755986201,0.03871228,115950.0,115940.0,2.26705082]
[1757755996605,0.03871228,115950.0,115940.0,2.17868541]
[1757755997805,0.03871228,115950.0,115940.0,2.26705082]
[1757756000006,0.03871228,115950.0,115940.0,1.54545082]
[1757756000206,0.03871228,115950.0,115940.0,2.26705082]
[1757756009008,0.03871228,115950.0,115940.0,1.54545082]
[1757756009308,0.03871228,115950.0,115940.0,2.26705082]
[1757756021415,0.03871228,115950.0,115940.0,1.48433082]
[1757756021719,0.03871228,115950.0,115940.0,2.17704541]
[1757756021911,0.12707769,115950.0,115940.0,1.39596541]
[1757756022112,0.1580694,115950.0,115940.0,2.17704541]
[1757756022618,0.1580694,115950.0,115940.0,2.08868]
[1757756022819,0.1580694,115950.0,115940.0,2.17704541]
[1757756023622,0.20455644,115950.0,115940.0,2.17704541]
[1757756025217,0.1580694,115950.0,115940.0,2.17704541]
[1757756026219,0.20455644,115950.0,115940.0,2.17704541]
[1757756033528,0.12707769,115950.0,115940.0,2.17704541]
[1757756037632,0.03871228,115950.0,115940.0,2.17704541]
[1757756038030,0.12707769,115950.0,115940.0,2.17704541]
[1757756041337,0.03871228,115950.0,115940.0,2.17704541]
[1757756041640,0.12707769,115950.0,115940.0,2.17704541]
[1757756041834,0.03871228,115950.0,115940.0,2.17704541]
[1757756042040,0.03871228,115950.0,115940.0,2.26541082]
[1757756043240,0.03871228,115950.0,115940.0,2.51541082]
[1757756044436,0.03871228,115950.0,115940.0,2.53744959]